bitfinex/quotes_BTCUSD_20250602
["timestamp","ask_amount","ask_price","bid_price","bid_amount"]
[1748826182481,0.00105043,105490.0,105480.0,0.67265565]
[1748826182693,0.00105043,105490.0,105480.0,0.38229565]
[1748826182892,0.00105043,105490.0,105480.0,0.67265661]
[1748826183095,0.00105043,105490.0,105480.0,0.67265663]
[1748826183723,0.00105043,105490.0,105480.0,0.6549094]
[1748826183928,0.00105043,105490.0,105480.0,0.67266143]
[1748826184195,0.00105043,105490.0,105480.0,0.6549094]
[1748826184369,0.00105043,105490.0,105480.0,0.67266143]
[1748826185095,0.00105043,105490.0,105480.0,0.68816303]
[1748826185300,0.00105043,105490.0,105480.0,0.67041065]
[1748826185527,0.00105043,105490.0,105480.0,0.68816303]
[1748826185642,0.00105043,105490.0,105480.0,0.66153446]
[1748826185864,0.00105043,105490.0,105480.0,0.67928972]
[1748826186064,0.00105043,105490.0,105480.0,0.68816735]
[1748826186519,0.00105043,105490.0,105480.0,0.70852759]
[1748826187319,0.00105043,105490.0,105480.0,0.69964996]
[1748826187679,0.00105043,105490.0,105480.0,0.70852759]
[1748826187881,0.00105043,105490.0,105480.0,0.70852938]
[1748826188067,0.00105043,105490.0,105480.0,0.70853297]
[1748826188487,0.00105043,105490.0,105480.0,1.02475665]
[1748826189129,0.00105043,105490.0,105480.0,1.02111234]
[1748826189546,0.00105043,105490.0,105480.0,1.01223284]
[1748826189752,0.00105043,105490.0,105480.0,1.02111948]
[1748826189955,0.00105043,105490.0,105480.0,0.70489579]
[1748826190162,0.00105043,105490.0,105480.0,1.02111939]
[1748826190362,0.00105043,105490.0,105480.0,1.00335556]
[1748826190573,0.00105043,105490.0,105480.0,1.0211199]
[1748826191293,0.00105043,105490.0,105480.0,1.02112003]
[1748826191674,0.00105043,105490.0,105480.0,1.02112012]
[1748826192130,0.00105043,105490.0,105480.0,1.02112017]
[1748826192707,0.00105043,105490.0,105480.0,1.00335605]
[1748826192906,0.00105043,105490.0,105480.0,1.02112052]
[1748826193113,0.00105043,105490.0,105480.0,1.02112065]
[1748826193545,0.00105043,105490.0,105480.0,1.02112079]
[1748826194298,0.00105043,105490.0,105480.0,1.02112092]
[1748826194720,0.00105043,105490.0,105480.0,0.70489739]
[1748826197382,0.00105043,105490.0,105480.0,0.70489745]
[1748826197803,0.00105043,105490.0,105480.0,0.70489757]
[1748826198857,0.00105043,105490.0,105480.0,0.70489761]
[1748826199492,0.00105043,105490.0,105480.0,0.70489767]
[1748826200098,0.00105043,105490.0,105480.0,0.69601524]
[1748826200274,0.00105043,105490.0,105480.0,0.70489781]
[1748826200476,0.00105043,105490.0,105480.0,0.69601534]
[1748826200689,0.03375043,105490.0,105480.0,0.38353793]
[1748826200890,0.01755043,105490.0,105480.0,0.67377805]
[1748826201055,0.01755043,105490.0,105480.0,0.67377811]
[1748826201247,0.00105043,105490.0,105480.0,0.67742541]
[1748826201442,0.00105043,105490.0,105480.0,0.67742543]
[1748826201948,0.00105043,105490.0,105480.0,0.67377816]
[1748826203632,0.00105043,105490.0,105480.0,0.67377819]
[1748826203847,0.00105043,105490.0,105480.0,0.64713039]
[1748826204058,0.00105043,105490.0,105480.0,0.67377825]
[1748826204474,0.00105043,105490.0,105480.0,0.38353825]
[1748826204690,0.00105043,105490.0,105480.0,0.66489563]
[1748826204897,0.00105043,105490.0,105480.0,0.67377834]
[1748826205110,0.00105043,105490.0,105480.0,0.67377853]
[1748826206063,0.00105043,105490.0,105480.0,0.67377854]
[1748826206285,0.00105043,105490.0,105480.0,0.67377856]
[1748826206548,0.00105043,105490.0,105480.0,0.38353856]
[1748826206772,0.00105043,105490.0,105480.0,0.67377856]
[1748826207433,0.00105043,105490.0,105480.0,0.99004517]
[1748826207657,0.00105043,105490.0,105480.0,0.98116262]
[1748826207870,0.00105043,105490.0,105480.0,0.99004563]
[1748826208087,0.00105043,105490.0,105480.0,0.9722796]
[1748826208311,0.00105043,105490.0,105480.0,0.99004563]
[1748826208795,0.00105043,105490.0,105480.0,1.02164565]
[1748826209005,0.00105043,105490.0,105480.0,1.02529315]
[1748826209216,0.00105043,105490.0,105480.0,1.02164575]
[1748826209654,0.00105043,105490.0,105480.0,1.0127627]
[1748826209893,0.00105043,105490.0,105480.0,1.02164578]
[1748826210100,0.00105043,105490.0,105480.0,1.0216459]
[1748826210309,0.00105043,105490.0,105480.0,1.0216059]
[1748826210761,0.00105043,105490.0,105480.0,1.02160595]
[1748826211217,0.00105043,105490.0,105480.0,1.02160605]
[1748826211444,0.00105043,105490.0,105480.0,1.02525351]
[1748826211659,0.00105043,105490.0,105480.0,1.02525359]
[1748826211868,0.00105043,105490.0,105480.0,1.02525372]
[1748826212287,0.00105043,105490.0,105480.0,0.73505372]
[1748826212510,0.04518779,105490.0,105480.0,0.38232728]
[1748826212724,0.25975879,105490.0,105480.0,0.04946395]
[1748826212949,0.24080082,105490.0,105480.0,0.24490627]
[1748826213173,0.24080082,105490.0,105480.0,0.25438898]
[1748826213393,0.24080082,105490.0,105480.0,0.24490887]
[1748826213602,0.23132143,105490.0,105480.0,0.24490876]
[1748826213861,0.23132143,105490.0,105480.0,0.24490885]
[1748826214297,0.37707179,105490.0,105480.0,0.04580597]
[1748826214738,0.33498228,105490.0,105480.0,0.03692162]
[1748826214947,0.33498228,105490.0,105480.0,0.04579488]
[1748826215189,0.33498228,105490.0,105480.0,0.04578577]
[1748826215406,0.75122722,105490.0,105480.0,0.04578577]
[1748826215617,0.75122722,105490.0,105480.0,0.04578617]
[1748826215802,0.75122722,105490.0,105480.0,0.04578569]
[1748826216051,0.75122722,105490.0,105480.0,0.04578563]
[1748826216885,0.75122722,105490.0,105480.0,0.02803506]
[1748826217315,0.67498228,105490.0,105480.0,0.02803506]
[1748826218393,0.58586228,105490.0,105480.0,0.02803506]
[1748826218612,0.96518228,105490.0,105480.0,0.02803506]
[1748826219714,0.96518228,105490.0,105480.0,0.02803179]
[1748826219923,0.58586228,105490.0,105480.0,0.02803179]
[1748826220145,0.96518228,105490.0,105480.0,0.02803179]
[1748826220586,0.58586228,105490.0,105480.0,0.02803179]
[1748826220803,0.96518228,105490.0,105480.0,0.01916599]
[1748826225423,0.58586228,105490.0,105480.0,0.01916599]
[1748826225637,0.96518228,105490.0,105480.0,0.20877539]
[1748826225852,0.95570271,105490.0,105480.0,0.20877539]
[1748826226269,0.65096186,105490.0,105480.0,0.21825568]
[1748826226509,0.66044134,105490.0,105480.0,0.22773588]
[1748826226720,0.66044134,105490.0,105480.0,0.21825568]
[1748826227812,0.66044134,105490.0,105480.0,0.20877539]
[1748826228027,0.66044134,105490.0,105480.0,0.21825586]
[1748826229590,0.67498219,105490.0,105480.0,0.01916599]
[1748826232616,0.55582134,105490.0,105480.0,0.22773588]
[1748826232823,0.43956937,105490.0,105480.0,0.25555179]
[1748826233025,0.4585277,105490.0,105480.0,0.2372159]
[1748826233248,0.45852779,105490.0,105480.0,0.40989743]
[1748826233671,0.02948779,105490.0,105480.0,0.40989743]
[1748826233887,0.02948779,105490.0,105480.0,0.40989893]
[1748826234502,0.02948779,105490.0,105480.0,0.40989953]
[1748826234715,0.02948779,105490.0,105480.0,0.40990012]
[1748826235377,0.02948779,105490.0,105480.0,0.39390242]
[1748826235607,0.02948779,105490.0,105480.0,0.35202997]
[1748826235824,0.02948779,105490.0,105480.0,0.37860529]
[1748826236321,0.02948779,105490.0,105480.0,0.35964552]
[1748826236544,0.24260055,105490.0,105480.0,0.24483109]
[1748826236786,0.24260055,105490.0,105480.0,0.04574338]
[1748826237071,0.23818271,105490.0,105480.0,0.04574338]
[1748826237293,0.23818271,105490.0,105480.0,0.04574361]
[1748826237525,0.23818271,105490.0,105480.0,0.04574836]
[1748826237746,0.23818271,105490.0,105480.0,0.01916599]
[1748826237930,0.57818271,105490.0,105480.0,0.04575233]
[1748826238175,0.57818271,105490.0,105480.0,0.02802889]
[1748826238854,0.57818271,105490.0,105480.0,0.02803075]
[1748826239305,0.67069393,105490.0,105480.0,0.02803075]
[1748826239534,0.67069393,105490.0,105480.0,0.01916599]
[1748826239980,0.67069393,105490.0,105480.0,0.02803303]
[1748826240840,0.67069393,105490.0,105480.0,0.02803575]
[1748826241263,0.67069393,105490.0,105480.0,0.01916599]
[1748826241446,0.67069393,105490.0,105480.0,0.02803575]
[1748826242520,0.57818271,105490.0,105480.0,0.04579274]
[1748826242738,0.67403701,105490.0,105480.0,0.02804485]
[1748826242964,0.67403701,105490.0,105480.0,0.01916599]
[1748826243412,0.72779846,105490.0,105480.0,0.01916599]
[1748826244246,0.72679846,105490.0,105480.0,0.01516599]
[1748826244523,0.72779846,105490.0,105480.0,0.01816599]
[1748826244944,1.05319701,105490.0,105480.0,0.01816599]
[1748826245390,0.57818271,105490.0,105480.0,0.01816599]
[1748826245609,0.56364186,105490.0,105480.0,0.01816599]
[1748826245817,0.94280186,105490.0,105480.0,0.01816599]
[1748826246028,0.95734271,105490.0,105480.0,0.01816599]
[1748826247286,1.04985393,105490.0,105480.0,0.01816599]
[1748826249058,0.57818271,105490.0,105480.0,0.01816599]
[1748826249529,0.95734271,105490.0,105480.0,0.01816599]
[1748826264293,0.54518271,105490.0,105480.0,0.01816599]
[1748826264497,0.92426271,105490.0,105480.0,0.01816599]
[1748826265919,0.92426271,105490.0,105480.0,0.02704235]
[1748826266569,0.92426271,105490.0,105480.0,0.02704532]
[1748826268712,0.92426271,105490.0,105480.0,0.02704877]
[1748826269305,1.14372823,105490.0,105480.0,0.02704877]
[1748826269734,1.05121701,105490.0,105480.0,0.02704877]
[1748826270170,1.05121701,105490.0,105480.0,0.0270496]
[1748826270587,0.94036271,105490.0,105480.0,0.0270496]
[1748826270798,0.95636271,105490.0,105480.0,0.02704965]
[1748826271212,0.95636271,105490.0,105480.0,0.02704968]
[1748826271446,0.95632271,105490.0,105480.0,0.01816599]
[1748826271628,0.95632271,105490.0,105480.0,0.02704969]
[1748826271854,0.95632271,105490.0,105480.0,0.02705058]
[1748826272697,0.95632271,105490.0,105480.0,0.01816599]
[1748826272911,0.95632271,105490.0,105480.0,0.02705058]
[1748826273118,0.95632271,105490.0,105480.0,0.02705059]
[1748826273327,0.94032271,105490.0,105480.0,0.02705059]
[1748826273790,0.95562271,105490.0,105480.0,0.02705059]
[1748826274009,0.99250832,105490.0,105480.0,0.02705059]
[1748826274220,1.05147701,105490.0,105480.0,0.02705108]
[1748826274435,1.21678751,105490.0,105480.0,0.02705116]
[1748826274654,1.11698181,105490.0,105480.0,0.02705118]
[1748826274872,0.73794181,105490.0,105480.0,0.02705118]
[1748826275174,1.11698181,105490.0,105480.0,0.02705118]
[1748826275596,1.11698181,105490.0,105480.0,0.02705148]
[1748826276008,1.11698181,105490.0,105480.0,0.02705173]
[1748826276440,1.11698181,105490.0,105480.0,0.01188574]
[1748826277633,1.11698181,105490.0,105480.0,0.01188555]
[1748826278288,1.11698181,105490.0,105480.0,0.01188545]
[1748826278468,0.73904181,105490.0,105480.0,0.01188545]
[1748826278707,1.11808181,105490.0,105480.0,0.01188545]
[1748826279355,0.79554181,105490.0,105480.0,0.04278545]
[1748826279565,0.61068751,105490.0,105480.0,0.04278545]
[1748826279774,0.98972751,105490.0,105480.0,0.04278545]
[1748826279981,0.63418271,105490.0,105480.0,0.23239485]
[1748826280212,0.92422271,105490.0,105480.0,0.2501648]
[1748826280423,0.92422271,105490.0,105480.0,0.0605554]
[1748826280635,0.53064186,105490.0,105480.0,0.24247007]
[1748826280858,0.34105043,105490.0,105480.0,0.24247016]
[1748826281074,0.11848788,105490.0,105480.0,0.28808365]
[1748826281298,0.04698034,105490.0,105480.0,0.28808365]
[1748826281536,0.13598034,105490.0,105480.0,0.28808128]
[1748826281760,0.13598034,105490.0,105480.0,0.28807917]
[1748826282420,0.13598034,105490.0,105480.0,0.28806988]
[1748826282639,0.04698034,105490.0,105480.0,0.28806988]
[1748826282910,0.03750086,105490.0,105480.0,0.28806988]
[1748826283125,0.03750086,105490.0,105480.0,0.28806253]
[1748826283784,0.03750086,105490.0,105480.0,0.28806126]
[1748826283991,0.03750086,105490.0,105480.0,0.28805441]
[1748826284718,0.03750086,105490.0,105480.0,0.28805359]
[1748826285133,0.03750086,105490.0,105480.0,0.28804739]
[1748826285974,0.03750086,105490.0,105480.0,0.28803663]
[1748826286184,0.03750086,105490.0,105480.0,0.2880366]
[1748826286397,0.03750086,105490.0,105480.0,0.26143011]
[1748826286625,0.03750086,105490.0,105480.0,0.28803657]
[1748826287057,0.03750086,105490.0,105480.0,0.28803253]
[1748826287696,0.03750086,105490.0,105480.0,0.28803227]
[1748826288265,0.03750086,105490.0,105480.0,0.28803122]
[1748826288448,0.03750086,105490.0,105480.0,0.28802859]
[1748826288913,0.03750086,105490.0,105480.0,0.28802776]
[1748826289119,0.03750077,105490.0,105480.0,0.28802776]
[1748826289307,0.04697998,105490.0,105480.0,0.28802544]
[1748826289508,0.03750077,105490.0,105480.0,0.28802544]
[1748826289923,0.03750077,105490.0,105480.0,0.28802413]
[1748826290125,0.03750077,105490.0,105480.0,0.28802347]
[1748826290333,0.03750077,105490.0,105480.0,0.28802349]
[1748826290813,0.03750086,105490.0,105480.0,0.28802349]
[1748826291012,0.03750077,105490.0,105480.0,0.28802337]
[1748826291434,0.03750077,105490.0,105480.0,0.28802262]
[1748826291850,0.03750077,105490.0,105480.0,0.28802025]
[1748826292081,0.03750077,105490.0,105480.0,0.28801981]
[1748826292503,0.03750077,105490.0,105480.0,0.27915658]
[1748826292718,0.03750077,105490.0,105480.0,0.28801981]
[1748826292903,0.03750086,105490.0,105480.0,0.27915658]
[1748826293110,0.03750086,105490.0,105480.0,0.28801932]
[1748826293333,0.03750077,105490.0,105480.0,0.28801932]
[1748826293529,0.02802165,105490.0,105480.0,0.28801931]
[1748826293944,0.03750068,105490.0,105480.0,0.28801891]
[1748826294822,0.03750068,105490.0,105480.0,0.28801714]
[1748826295238,0.03750068,105490.0,105480.0,0.28801665]
[1748826295459,0.03750068,105490.0,105480.0,0.26143011]
[1748826295669,0.03750068,105490.0,105480.0,0.28801665]
[1748826295891,0.03750068,105490.0,105480.0,0.28801633]
[1748826296230,0.03750068,105490.0,105480.0,0.28801573]
[1748826296659,0.03750068,105490.0,105480.0,0.28801572]
[1748826297564,0.03750068,105490.0,105480.0,0.28801513]
[1748826298224,0.03750068,105490.0,105480.0,0.28801506]
[1748826298809,0.03750068,105490.0,105480.0,0.28801501]
[1748826299246,0.01854289,105490.0,105480.0,0.28801501]
[1748826299454,0.02802174,105490.0,105480.0,0.28801501]
[1748826299681,0.01854289,105490.0,105480.0,0.28801501]
[1748826299892,0.01854289,105490.0,105480.0,0.23815479]
[1748826299893,0.06152047,105490.0,105480.0,0.23815479]
[1748826300101,0.05645865,105490.0,105480.0,0.27923543]
[1748826300315,0.05645865,105490.0,105480.0,0.27923583]
[1748826300532,0.04697953,105490.0,105480.0,0.27923583]
[1748826300991,0.04697953,105490.0,105480.0,0.27923636]
[1748826301209,0.01854289,105490.0,105480.0,0.27923636]
[1748826301637,0.01854289,105490.0,105480.0,0.37509119]
[1748826301872,0.01854289,105490.0,105480.0,0.37509081]
[1748826302304,0.01854289,105490.0,105480.0,0.37509066]
[1748826302513,0.01854289,105490.0,105480.0,0.37509012]
[1748826302721,0.01854289,105490.0,105480.0,0.37508955]
[1748826303148,0.01854289,105490.0,105480.0,0.35736587]
[1748826303367,0.01854289,105490.0,105480.0,0.37509004]
[1748826303585,0.01854289,105490.0,105480.0,0.37508933]
[1748826303804,0.01854289,105490.0,105480.0,0.36622749]
[1748826304009,0.01854289,105490.0,105480.0,0.37508922]
[1748826305278,0.01854289,105490.0,105480.0,0.36622749]
[1748826305481,0.01854289,105490.0,105480.0,0.37509069]
[1748826305956,0.00105043,105490.0,105480.0,0.37509027]
[1748826306459,0.00105043,105490.0,105480.0,0.37509311]
[1748826306706,0.00105043,105490.0,105480.0,0.35736704]
[1748826306943,0.00105043,105490.0,105480.0,0.36623254]
[1748826307127,0.00105043,105490.0,105480.0,0.66497685]
[1748826307569,0.00105043,105490.0,105480.0,0.65611221]
[1748826307821,0.00105043,105490.0,105480.0,0.6649763]
[1748826308045,0.00105043,105490.0,105480.0,0.6649824]
[1748826308485,0.00105043,105490.0,105480.0,0.66498205]
[1748826309173,0.00105043,105490.0,105480.0,0.64725261]
[1748826309419,0.00105043,105490.0,105480.0,0.66498978]
[1748826309649,0.00105043,105490.0,105480.0,0.65089116]
[1748826309898,0.00105043,105490.0,105480.0,0.66864098]
[1748826310349,0.00105043,105490.0,105480.0,0.65089788]
[1748826310586,0.00105043,105490.0,105480.0,0.66864081]
[1748826310831,0.00105043,105490.0,105480.0,0.66863986]
[1748826311254,0.00105043,105490.0,105480.0,0.66864353]
[1748826311475,0.00105043,105490.0,105480.0,0.66864344]
[1748826311913,0.00105043,105490.0,105480.0,0.66864453]
[1748826312139,0.00105043,105490.0,105480.0,0.66864558]
[1748826312341,0.00105043,105490.0,105480.0,0.66864608]
[1748826312542,0.00105043,105490.0,105480.0,0.65089999]
[1748826312752,0.00105043,105490.0,105480.0,0.66864521]
[1748826313170,0.00105043,105490.0,105480.0,0.66864746]
[1748826313463,0.00105043,105490.0,105480.0,0.64202738]
[1748826313691,0.00105043,105490.0,105480.0,0.66864744]
[1748826313922,0.00105043,105490.0,105480.0,0.65090073]
[1748826314157,0.00105043,105490.0,105480.0,0.66864676]
[1748826314356,0.00105043,105490.0,105480.0,0.66804639]
[1748826314855,0.00105043,105490.0,105480.0,0.66804608]
[1748826315156,0.00105043,105490.0,105480.0,0.66804593]
[1748826315556,0.00105043,105490.0,105480.0,0.66804611]
[1748826315684,0.00105043,105490.0,105480.0,0.65030038]
[1748826315888,0.00105043,105490.0,105480.0,0.66804611]
[1748826316128,0.00105043,105490.0,105480.0,0.64142752]
[1748826316306,0.00105043,105490.0,105480.0,0.66804594]
[1748826316503,0.00105043,105490.0,105480.0,0.66804589]
[1748826317139,0.00105043,105490.0,105480.0,0.6591731]
[1748826317335,0.00105043,105490.0,105480.0,0.66804554]
[1748826317801,0.00105043,105490.0,105480.0,0.65917277]
[1748826318001,0.00105043,105490.0,105480.0,0.66804542]
[1748826318655,0.00105043,105490.0,105480.0,0.66804526]
[1748826318892,0.00105043,105490.0,105480.0,0.66804538]
[1748826320823,0.00105043,105490.0,105480.0,0.66440194]
[1748826321049,0.00105043,105490.0,105480.0,0.66804594]
[1748826321262,0.00105043,105490.0,105480.0,0.66804663]
[1748826321913,0.00105043,105490.0,105480.0,0.6680472]
[1748826322255,0.00105043,105490.0,105480.0,0.66804723]
[1748826322458,0.00105043,105490.0,105480.0,0.66804783]
[1748826323272,0.00105043,105490.0,105480.0,0.66804858]
[1748826323477,0.00105043,105490.0,105480.0,0.66804857]
[1748826323728,0.00105043,105490.0,105480.0,0.66804866]
[1748826323926,0.00105043,105490.0,105480.0,0.6503017]
[1748826324107,0.00105043,105490.0,105480.0,0.66804979]
[1748826324455,0.00105043,105490.0,105480.0,0.66804993]
[1748826325213,0.00105043,105490.0,105480.0,0.66805018]
[1748826326280,0.00105043,105490.0,105480.0,0.66805075]
[1748826326478,0.00105043,105490.0,105480.0,0.64142766]
[1748826326681,0.00105043,105490.0,105480.0,0.66805203]
[1748826326887,0.00105043,105490.0,105480.0,0.66805231]
[1748826327111,0.00105043,105490.0,105480.0,0.66805286]
[1748826327511,0.00105043,105490.0,105480.0,0.6680543]
[1748826327851,0.00105043,105490.0,105480.0,0.6679743]
[1748826328233,0.00105043,105490.0,105480.0,0.6679765]
[1748826328445,0.00105043,105490.0,105480.0,0.65910022]
[1748826328665,0.00105043,105490.0,105480.0,0.66797664]
[1748826329077,0.00105043,105490.0,105480.0,0.66797948]
[1748826329286,0.00105043,105490.0,105480.0,0.66797949]
[1748826329491,0.00105043,105490.0,105480.0,0.66797977]
[1748826329736,0.00105043,105490.0,105480.0,0.66798293]
[1748826329936,0.00105043,105490.0,105480.0,0.6502281]
[1748826330137,0.04528779,105490.0,105480.0,0.33710566]
[1748826330377,0.07086736,105490.0,105480.0,0.3465868]
[1748826330558,0.24150037,105490.0,105480.0,0.30926829]
[1748826330881,0.24150037,105490.0,105480.0,0.33346655]
[1748826331113,0.58150037,105490.0,105480.0,0.02904954]
[1748826331318,0.70536916,105490.0,105480.0,0.0024]
[1748826331530,0.65332765,105490.0,105480.0,0.0024]
[1748826331942,0.65332765,105490.0,105480.0,0.01128415]
[1748826332152,0.65332765,105490.0,105480.0,0.02016831]
[1748826332399,0.65332765,105490.0,105480.0,0.02905246]
[1748826332728,0.65332765,105490.0,105480.0,0.02902858]
[1748826332960,0.65332765,105490.0,105480.0,0.0024]
[1748826333307,0.65332765,105490.0,105480.0,0.0201524]
[1748826333512,0.57708271,105490.0,105480.0,0.01127619]
[1748826333724,0.57708271,105490.0,105480.0,0.02902795]
[1748826334972,0.57708271,105490.0,105480.0,0.02901495]
[1748826335180,0.57708271,105490.0,105480.0,0.0024]
[1748826335389,0.57708271,105490.0,105480.0,0.0201433]
[1748826335592,0.57708271,105490.0,105480.0,0.01127165]
[1748826337619,0.57708271,105490.0,105480.0,0.0024]
[1748826337857,0.57708271,105490.0,105480.0,0.01126568]
[1748826338758,0.66959393,105490.0,105480.0,0.01126568]
[1748826338969,0.66959393,105490.0,105480.0,0.01126362]
[1748826339392,0.57708271,105490.0,105480.0,0.01126362]
[1748826339620,0.57708271,105490.0,105480.0,0.0024]
[1748826339869,0.57708271,105490.0,105480.0,0.0112632]
[1748826340525,0.57708271,105490.0,105480.0,0.01126278]
[1748826340953,0.57708271,105490.0,105480.0,0.0024]
[1748826343105,0.54644186,105490.0,105480.0,0.1920094]
[1748826343329,0.3694877,105490.0,105480.0,0.22930941]
[1748826343533,0.00105043,105490.0,105480.0,0.68988632]
[1748826343788,0.00105043,105490.0,105480.0,0.68988197]
[1748826343992,0.00105043,105490.0,105480.0,0.68102369]
[1748826344206,0.00105043,105490.0,105480.0,0.66330784]
[1748826344438,0.00105043,105490.0,105480.0,1.00228727]
[1748826344638,0.00105043,105490.0,105480.0,1.01114382]
[1748826344843,0.00105043,105490.0,105480.0,0.72319283]
[1748826345293,0.00105043,105490.0,105480.0,0.71433266]
[1748826345496,5.043e-05,105490.0,105480.0,0.69422108]
[1748826345697,5.043e-05,105490.0,105480.0,0.72078948]
[1748826345890,5.043e-05,105490.0,105480.0,0.71193346]
[1748826346091,5.043e-05,105490.0,105480.0,0.72078965]
[1748826346328,0.00105043,105490.0,105480.0,1.47107364]
[1748826346929,0.00105043,105490.0,105480.0,1.48107364]
[1748826347135,0.00105043,105490.0,105480.0,1.49075425]
[1748826347341,0.0005,105500.0,105490.0,0.90623305]
[1748826347541,0.0005,105500.0,105490.0,1.29668918]
[1748826347735,0.0005,105500.0,105490.0,1.31839638]
[1748826347891,0.0005,105500.0,105490.0,1.31839639]
[1748826348294,0.0005,105500.0,105490.0,1.30553642]
[1748826348496,0.0005,105500.0,105490.0,1.32322358]
[1748826348695,0.0005,105500.0,105490.0,1.31437235]
[1748826348902,0.0005,105500.0,105490.0,1.32321515]
[1748826349107,0.0005,105500.0,105490.0,1.32721515]
[1748826349361,0.0005,105500.0,105490.0,1.30952954]
[1748826349646,0.0005,105500.0,105490.0,1.32720824]
[1748826350227,0.0005,105500.0,105490.0,1.32719884]
[1748826351035,0.0005,105500.0,105490.0,1.31836152]
[1748826351232,0.0005,105500.0,105490.0,1.32719417]
[1748826351443,0.0005,105500.0,105490.0,1.32718388]
[1748826352260,0.0005,105500.0,105490.0,1.32717122]
[1748826352454,0.0005,105500.0,105490.0,1.32716735]
[1748826352673,0.0005,105500.0,105490.0,1.3195133]
[1748826353057,0.0005,105500.0,105490.0,1.33716648]
[1748826353675,0.0005,105500.0,105490.0,1.36560585]
[1748826353883,0.0005,105500.0,105490.0,1.36560097]
[1748826354088,0.0005,105500.0,105490.0,1.33913374]
[1748826354293,0.0005,105500.0,105490.0,1.36560083]
[1748826354499,0.0005,105500.0,105490.0,1.36559735]
[1748826354707,0.18403384,105540.0,105530.0,0.21794639]
[1748826354913,0.18417972,105540.0,105530.0,0.31380069]
[1748826355902,0.19365435,105540.0,105530.0,0.31380069]
[1748826356105,0.19665435,105540.0,105530.0,0.31380069]
[1748826356600,0.16823082,105540.0,105530.0,0.31380069]
[1748826357039,0.17770509,105540.0,105530.0,0.31380069]
[1748826357206,0.18717954,105540.0,105530.0,0.31380069]
[1748826358152,0.19665417,105540.0,105530.0,0.31380069]
[1748826358575,0.12040914,105540.0,105530.0,0.3142801]
[1748826358785,0.12988377,105540.0,105530.0,0.3142801]
[1748826359449,0.12988386,105540.0,105530.0,0.3142801]
[1748826360507,0.15555876,105540.0,105530.0,0.3142801]
[1748826360714,0.15255876,105540.0,105530.0,0.3142801]
[1748826360923,0.16885876,105540.0,105530.0,0.3142801]
[1748826361135,0.16885876,105540.0,105530.0,0.3152801]
[1748826361751,0.15938386,105540.0,105530.0,0.3152801]
[1748826362180,0.16885876,105540.0,105530.0,0.3152801]
[1748826362395,0.16885867,105540.0,105530.0,0.3152801]
[1748826362815,0.1688593,105540.0,105530.0,0.3152801]
[1748826363028,0.1593844,105540.0,105530.0,0.3152801]
[1748826363716,0.0705444,105540.0,105530.0,0.3152801]
[1748826364153,0.0800193,105540.0,105530.0,0.3152801]
[1748826364793,0.0705444,105540.0,105530.0,0.3152801]
[1748826366433,0.06106959,105540.0,105530.0,0.3152801]
[1748826366933,0.05159487,105540.0,105530.0,0.3152801]
[1748826367774,0.04476959,105540.0,105530.0,0.3152801]
[1748826368676,0.03529487,105540.0,105530.0,0.3152801]
[1748826368876,0.0190946,105540.0,105530.0,0.3152801]
[1748826369078,0.02856923,105540.0,105530.0,0.3152801]
[1748826369279,0.00014588,105540.0,105530.0,0.3152801]
[1748826369488,0.00962033,105540.0,105530.0,0.3152801]
[1748826371011,0.00962033,105540.0,105530.0,0.33292323]
[1748826372082,0.00962033,105540.0,105530.0,0.3329263]
[1748826372303,0.00014588,105540.0,105530.0,0.3152801]
[1748826372524,0.00962024,105540.0,105530.0,0.33292595]
[1748826372738,0.00962024,105540.0,105530.0,0.34176345]
[1748826372951,0.01909478,105540.0,105530.0,0.34176348]
[1748826373165,0.00962024,105540.0,105530.0,0.34176348]
[1748826373377,0.00962024,105540.0,105530.0,0.68076603]
[1748826373378,0.00014588,105540.0,105530.0,0.68076603]
[1748826373601,0.00014588,105540.0,105530.0,0.6667094]
[1748826374293,0.00014588,105540.0,105530.0,0.68926228]
[1748826374508,0.00014588,105540.0,105530.0,0.37185826]
[1748826374724,0.00014588,105540.0,105530.0,0.34930541]
[1748826374942,0.00014588,105540.0,105530.0,0.35130541]
[1748826375383,0.00014588,105540.0,105530.0,0.37386695]
[1748826375595,0.00014588,105540.0,105530.0,0.3738664]
[1748826376013,0.00014588,105540.0,105530.0,0.37386633]
[1748826376220,0.00014588,105540.0,105530.0,0.37388139]
[1748826376437,0.00014588,105540.0,105530.0,0.37388134]
[1748826376663,0.00014588,105540.0,105530.0,0.33764195]
[1748826376664,0.01909469,105540.0,105530.0,0.33764195]
[1748826376920,0.04456896,105540.0,105530.0,0.33764195]
[1748826377133,0.02562015,105540.0,105530.0,0.33764195]
[1748826377760,0.0350946,105540.0,105530.0,0.33764195]
[1748826377983,0.02562015,105540.0,105530.0,0.33763142]
[1748826378190,0.02562015,105540.0,105530.0,0.33763154]
[1748826378943,0.01614588,105540.0,105530.0,0.33763124]
[1748826379186,0.00014588,105540.0,105530.0,0.33763123]
[1748826379404,0.00014588,105540.0,105530.0,0.33763096]
[1748826379624,0.00962015,105540.0,105530.0,0.31991629]
[1748826380069,0.0340946,105540.0,105530.0,0.33763173]
[1748826380291,0.02462015,105540.0,105530.0,0.33763172]
[1748826380513,0.02462015,105540.0,105530.0,0.3376291]
[1748826380514,0.03409451,105540.0,105530.0,0.3376291]
[1748826380734,0.02462015,105540.0,105530.0,0.33762819]
[1748826380952,0.02462015,105540.0,105530.0,0.3376278]
[1748826381176,0.02462015,105540.0,105530.0,0.33762792]
[1748826381402,0.02462015,105540.0,105530.0,0.33762797]
[1748826381627,0.02462015,105540.0,105530.0,0.31991629]
[1748826381855,0.01514588,105540.0,105530.0,0.33762832]
[1748826382353,0.00014588,105540.0,105530.0,0.33762832]
[1748826382575,0.00962033,105540.0,105530.0,0.33762832]
[1748826382795,0.02502015,105540.0,105530.0,0.33762832]
[1748826383013,0.01554588,105540.0,105530.0,0.33762832]
[1748826383227,0.01554588,105540.0,105530.0,0.31991629]
[1748826383467,0.01554588,105540.0,105530.0,0.33762311]
[1748826383689,0.00014588,105540.0,105530.0,0.33762311]
[1748826383915,0.00014588,105540.0,105530.0,0.3376199]
[1748826384366,0.00014588,105540.0,105530.0,0.3464713]
[1748826384587,0.00014588,105540.0,105530.0,0.33761896]
[1748826384808,0.00014588,105540.0,105530.0,0.31991629]
[1748826385035,0.02612024,105540.0,105530.0,0.31866839]
[1748826385253,0.06126932,105540.0,105530.0,0.35594676]
[1748826385470,0.06126932,105540.0,105530.0,0.35231165]
[1748826386367,0.06126932,105540.0,105530.0,0.35231351]
[1748826386562,0.06126932,105540.0,105530.0,0.33460861]
[1748826386832,0.06126932,105540.0,105530.0,0.01133355]
[1748826386833,0.3300572,105540.0,105530.0,0.01133355]
[1748826387055,0.3300572,105540.0,105530.0,0.01133365]
[1748826387275,0.3300572,105540.0,105530.0,0.02904528]
[1748826387493,0.34459805,105540.0,105530.0,0.02904528]
[1748826387707,0.68459805,105540.0,105530.0,0.02904775]
[1748826387923,0.97407805,105540.0,105530.0,0.02019104]
[1748826388138,0.97407805,105540.0,105530.0,0.02904779]
[1748826388353,0.97407805,105540.0,105530.0,0.02905103]
[1748826388570,0.97407805,105540.0,105530.0,0.02019429]